[Event "Superbet Blitz Poland 2023"]
[Site "Warsaw"]
[Date "2023.05.25"]
[Round "11"]
[White "Giri, Anish"]
[Black "Duda, Jan-Krzysztof"]
[Result "1-0"]
[ECO "A39"]
[WhiteElo "2768"]
[BlackElo "2724"]
[Annotator "TA"]
[PlyCount "127"]
[EventDate "2023.05.24"]
[EventType "tourn"]
[EventCountry "POL"]
[SourceTitle "playchess.com"]
[Source "ChessBase"]
[SourceQuality "1"]
[TimeControl "300+2"]

{[%evp 16,127,30,32,35,24,21,16,18,8,16,25,19,22,25,39,35,35,35,37,35,22,37,8,30,31,64,59,59,39,74,66,66,66,73,67,94,62,62,62,92,90,90,64,98,43,50,42,64,0,0,0,0,0,0,0,0,0,232,0,0,0,91,0,93,0,7,0,24,24,26,29,418,0,0,0,0,8,133,0,0,0,0,0,12841,0,851,0,0,0,0,0,0,0,0,0,0,0,0,0,0,0,0,0,0,0,12844,12844,12845,12845,12846,12847,12847,12847]} 1. c4 {[%emt 0:00:00]} Nf6 {[%emt 0:00:03]} 2. g3 {[%emt 0:00:02]} c5 {[%emt 0:00:24]} 3. Bg2 {[%emt 0:00:08]} Nc6 {[%emt 0:00:01]} 4. Nc3 {[%emt 0:00:01]} g6 {[%emt 0:00:03]} 5. Nf3 {[%emt 0:00:09][%cal Bg1f3,Bf3d4,Bd4c6][%mdl 32]} Bg7 {[%emt 0:00:03]} 6. O-O {[%emt 0:00:02]} O-O {[%emt 0:00:05]} 7. d4 {[%emt 0:00:01]} cxd4 {[%emt 0:00:01]} 8. Nxd4 {[%emt 0:00:00]} Qa5 {[%emt 0:00:01]} 9. e3 {[%emt 0:00:18] is now debated instead of 9.Nb3.} d6 {[%emt 0:00:01] A39: Symmetrical English vs ...g6: 4 Bg2 Bg7 5 Nf3 Nf6 6 0-0 0-0 7 d4.} 10. Bxc6 {[%emt 0:00:41]} bxc6 {[%emt 0:00:01]} 11. Nxc6 {[%emt 0:00:01]} Qc7 {[%emt 0:00:02] The position is equal.} 12. Nd5 {[%emt 0:00:01]} Nxd5 {[%emt 0:00:01]} 13. cxd5 {[%emt 0:00:00]} Bb7 {[%emt 0:00:03]} 14. Bd2 {[%emt 0:00:03]} Bxc6 {[%emt 0:00:11] This pair of bishops is nice.} 15. Rc1 {[%emt 0:00:17][%mdl 64] Pin} Bxb2 {[%emt 0:00:02]} 16. Rxc6 {[%emt 0:00:03]} Qd7 {[%emt 0:00:01]} 17. Qc2 {[%emt 0:00:04]} Bf6 {[%emt 0:00:02] [#]} 18. Bc3 $5 $146 {[%emt 0:00:09][%mdl 8] An interesting novelty.} ({Predecessor:} 18. Kg2 Rab8 19. Rb1 Qg4 20. f3 Qd7 21. e4 h5 22. Be3 Kg7 23. h3 Rfc8 24. Rb3 Rxb3 25. axb3 {½-½ Anton Guijarro,D (2634)-Almasi,Z (2689) Wch Rapid Berlin 2015 (4)}) 18... Bxc3 {[%emt 0:00:35]} 19. Qxc3 {[%emt 0:00:02]} (19. Rxc3 $5 Qb5 20. Rc7 $14) 19... Rfc8 {[%emt 0:00:21]} 20. Rc1 {[%emt 0:01:05][%cal Rc6c8]} Rxc6 {[%emt 0:00:03]} 21. dxc6 $14 {[%emt 0:00:13][%mdl 4096] Endgame KQR-KQR} Qc7 {[%emt 0:00:06]} 22. e4 {[%emt 0:00:17][%cal Oe4e5]} Rb8 {[%emt 0:00:30]} 23. Qc4 {[%emt 0:00:05]} Rb2 {[%emt 0:00:13]} 24. Rc2 {[%emt 0:00:11]} Rb6 {[%emt 0:00:31]} 25. Kg2 {[%emt 0:00:04]} e6 {[%emt 0:00:17]} 26. g4 {[%emt 0:00:31]} Rb8 {[%emt 0:00:09]} 27. h4 {[%emt 0:00:03]} Rd8 {[%emt 0:00:28]} 28. Qd4 {[%emt 0:00:22]} e5 {[%emt 0:00:40]} 29. Qc4 {[%emt 0:00:08] aiming for Rb2.} Rc8 {[%emt 0:00:03]} 30. f3 {[%emt 0:00:03]} (30. Rc3 $16) 30... Kg7 {[%emt 0:00:01]} 31. Qc3 {[%emt 0:00:04]} Qe7 {[%emt 0:00:06]} 32. c7 {[%emt 0:00:32]} (32. Qd2 $14) 32... Qxh4 $11 {[%emt 0:00:01]} 33. Qc6 {[%emt 0:00:01] Active counter play!} Qe7 {[%emt 0:00:14]} 34. Qb7 {[%emt 0:00:04]} Qd7 {[%emt 0:00:02]} 35. Qxa7 {[%emt 0:00:02]} Qb5 {[%emt 0:00:03]} 36. Qe3 {[%emt 0:00:04]} Qa5 $2 {[%emt 0:00:23]} (36... Kf6 $11) 37. Qc1 $2 {[%emt 0:00:06]} (37. Qc3 $18 Qxc3 38. Rxc3) 37... h6 {[%emt 0:00:02]} 38. a3 {[%emt 0:00:02]} Qa7 {[%emt 0:00:12]} (38... Kf6 $11) 39. Kg3 {[%emt 0:00:01]} (39. Rc6 $16) 39... Qa5 {[%emt 0:00:09]} (39... Kf6 $11 {remains equal.}) 40. Rc4 {[%emt 0:00:04]} (40. Rc6 $16) 40... Qa7 {[%emt 0:00:02]} 41. a4 {[%emt 0:00:00]} Qa5 {[%emt 0:00:01]} 42. Qc3 {[%emt 0:00:09]} Qa7 {[%emt 0:00:01] ( -> ...Qg1+)} 43. Kg2 {[%emt 0:00:01] Dodges Qg1+. And now f4 would win.} Kf6 $2 {[%emt 0:00:03][%mdl 8192]} (43... h5 $11) 44. a5 $2 {[%emt 0:00:01]} (44. f4 $1 $18 {[%cal Rf4e5]} Kg7 45. fxe5 dxe5 46. Qxe5+ Kh7 47. Qf4) 44... Ke7 $1 {[%emt 0:00:02]} 45. Rc6 {[%emt 0:00:07]} Kd7 {[%emt 0:00:05]} 46. a6 {[%emt 0:00:07] Really sharp!} Rxc7 {[%emt 0:00:01]} (46... h5 $1 $11 {keeps the balance.}) 47. Rxc7+ {[%emt 0:00:01]} (47. Qc4 $1 $16 {Rxc7+ would be deadly.} Kd8 48. Rxd6+ Ke7 49. Rc6 Rxc6 50. Qxc6) 47... Qxc7 {[%emt 0:00:01] KQ-KQ} 48. Qb3 {[%emt 0:00:01]} Kc6 {[%emt 0:00:03]} 49. Kg3 {[%emt 0:00:04]} Qe7 $2 {[%emt 0:00:03][%mdl 8192]} (49... f6 $11) 50. Qb4 $2 {[%emt 0:00:03]} (50. Qb8 $1 $18 Qf6 51. a7 Qf4+ 52. Kg2 Qd2+ 53. Kh3) 50... h5 $2 {[%emt 0:00:01][%mdl 8192]} (50... Qa7 $11) 51. gxh5 $2 {[%emt 0:00:01]} ({Only move:} 51. Qb8 $1 $18 {Strongly threatening a7.} Qg5 52. Qb7+ Kc5 53. Qxf7 (53. a7 Qf4+ 54. Kh3 Qxf3+ 55. Kh2 Qe2+ 56. Kh1 Qf3+ 57. Kh2 Qe2+ 58. Kh1 Qf3+ 59. Kh2 $11)) 51... gxh5 {[%emt 0:00:01]} 52. Qa5 {[%emt 0:00:01]} Qg5+ {[%emt 0:00:05]} 53. Kf2 {[%emt 0:00:01] Hoping for a7.} Qh4+ {[%emt 0:00:02]} 54. Kg2 {[%emt 0:00:01] Black must now prevent a7.} Qg5+ {[%emt 0:00:01]} 55. Kf2 {[%emt 0:00:01] a7 is the strong threat.} Qh4+ {[%emt 0:00:01]} 56. Ke2 {[%emt 0:00:04] Intending a7 and mate.} (56. Kg2 $5 Qg5+ $8 57. Kf1 Qc1+ 58. Kg2 Qg5+ $11) 56... Qh2+ {[%emt 0:00:01]} 57. Kd3 {[%emt 0:00:00] a7 would kill now.} Qf2 {[%emt 0:00:02]} 58. Qd5+ {[%emt 0:00:05]} Kb6 {[%emt 0:00:04]} 59. Qb7+ {[%emt 0:00:02]} Ka5 {[%emt 0:00:01]} 60. a7 {[%emt 0:00:02]} Qxf3+ $2 {[%emt 0:00:02][%mdl 8192] [#]} (60... Qf1+ $11 61. Kc2 (61. Ke3 Qe1+ 62. Kd3 Qd1+ 63. Ke3 Qe1+ 64. Kd3 Qd1+ 65. Ke3 Qe1+ $11) 61... Qf2+ 62. Kc3 Qd4+ 63. Kb3 Qe3+ 64. Kb2 Qf2+ 65. Kb3 Qe3+ 66. Kc4 Qd4+ 67. Kb3 Qe3+) 61. Kc4 $1 $18 {[%emt 0:00:03][%cal Ra7a8] White is clearly winning.} Qe2+ {[%emt 0:00:02] [#]} 62. Kd5 $1 {[%emt 0:00:01]} Qd3+ {[%emt 0:00:04]} 63. Kc6 {[%emt 0:00:00]} Qxe4+ {[%emt 0:00:03]} 64. Kc7 {[%emt 0:00:02] Weighted Error Value: White=0.46/Black=0.35} 1-0

[Event "Superbet Blitz Poland 2023"]
[Site "Warsaw"]
[Date "2023.05.25"]
[Round "11"]
[White "Aronian, Levon"]
[Black "Shevchenko, Kirill"]
[Result "0-1"]
[ECO "B31"]
[WhiteElo "2745"]
[BlackElo "2684"]
[Annotator "TA"]
[PlyCount "107"]
[EventDate "2023.05.24"]
[EventType "tourn"]
[EventCountry "POL"]
[SourceTitle "playchess.com"]
[Source "ChessBase"]
[SourceQuality "1"]
[TimeControl "300+2"]

{[%evp 13,107,24,20,16,21,2,15,0,0,5,9,0,0,0,0,0,0,0,0,0,0,0,0,0,37,34,28,13,43,0,0,0,0,0,0,0,0,-8,0,0,0,0,0,-23,-22,-104,-116,-121,-113,-111,-107,-108,-106,-93,-19,-41,-33,-45,-7,-8,0,-20,-20,-19,-19,-16,-17,-19,-24,-104,-60,-45,0,0,0,0,0,-307,-318,-312,-304,-274,-276,-1008,-1014,-963,-925,-1863,-1869,-1779,-1642,-1806,-1745,-1305,-1419,-1474]} 1. e4 {[%emt 0:00:02]} c5 {[%emt 0:00:01]} 2. Nf3 {[%emt 0:00:02]} Nc6 {[%emt 0:00:02]} 3. Bb5 {[%emt 0:00:02]} g6 {[%emt 0:00:02]} 4. O-O {[%emt 0:00:02]} Bg7 {[%emt 0:00:01]} 5. Re1 {[%emt 0:00:01]} e5 {[%emt 0:00:04]} 6. Bxc6 {[%emt 0:00:02]} dxc6 {[%emt 0:00:01]} 7. d3 {[%emt 0:00:02]} Qe7 {[%emt 0:00:06]} 8. Be3 {[%emt 0:00:05] B31: Sicilian: 2...Nc6 3 Bb5 g6.} Nf6 {[%emt 0:00:05][%cal Bg8f6,Bf6e8,Be8c7,Bc7e6,Be6f4][%mdl 32]} 9. h3 {[%emt 0:00:07]} O-O {[%emt 0:00:06]} 10. Nbd2 {[%emt 0:00:05] The position is equal.} Ne8 {[%emt 0:00:08]} 11. a3 {[%emt 0:00:07][%cal Ob2b4]} Nc7 {[%emt 0:00:13] [#]} 12. c3 $146 {[%emt 0:00:02]} ({Predecessor:} 12. Nc4 Na6 13. Qd2 f6 14. Bh6 Bxh6 15. Qxh6 Nc7 16. Kh2 Ne6 17. g3 Bd7 18. c3 {1-0 Scekic,M (2399)-Bogosavljevic,B (2536) SRB-chT Premier 2021 (9.6)}) 12... Rd8 {[%emt 0:00:24]} 13. Qc2 {[%emt 0:00:06]} b6 {[%emt 0:00:35]} 14. b4 {[%emt 0:00:03]} Ba6 {[%emt 0:00:07]} 15. Nc4 {[%emt 0:00:01]} Bxc4 {[%emt 0:00:18]} 16. dxc4 {[%emt 0:00:01]} Ne6 {[%emt 0:00:01]} 17. b5 {[%emt 0:00:12]} cxb5 {[%emt 0:00:55]} 18. cxb5 {[%emt 0:00:01]} c4 {[%emt 0:00:01]} 19. a4 {[%emt 0:00:23]} Qc7 {[%emt 0:00:15]} 20. Red1 {[%emt 0:00:08]} Nf4 {[%emt 0:00:09]} 21. Rxd8+ {[%emt 0:00:14]} Rxd8 {[%emt 0:00:01]} 22. Rd1 {[%emt 0:00:01]} Nd3 {[%emt 0:00:02]} 23. Ne1 {[%emt 0:00:02]} Nxe1 {[%emt 0:00:11]} 24. Rxe1 {[%emt 0:00:02]} Qd7 {[%emt 0:00:21]} 25. Bg5 {[%emt 0:00:56]} f6 {[%emt 0:00:01]} 26. Be3 {[%emt 0:00:01]} f5 {[%emt 0:00:01]} 27. Bg5 {[%emt 0:00:31]} Qd3 {[%emt 0:00:05]} 28. Qa2 {[%emt 0:00:01]} (28. Qc1 $5 {[%cal Rg5d8]} Rd7 29. exf5 $11) 28... Rd7 {[%emt 0:00:18] Strongly threatening ...f4.} (28... Qxc3 $2 29. Rc1 Qb3 30. Qxb3 cxb3 31. Bxd8 $18) (28... Rd6 $5 {[%cal Rh7h6]}) 29. Re3 {[%emt 0:00:28] Repels f4} (29. a5 $11) 29... Qd1+ $17 {[%emt 0:00:00]} 30. Kh2 {[%emt 0:00:01]} h6 $1 {[%emt 0:00:19]} 31. Qxc4+ {[%emt 0:00:01]} Kh7 {[%emt 0:00:01] White must now prevent ...f4.} 32. exf5 {[%emt 0:00:36]} hxg5 {[%emt 0:00:01]} 33. fxg6+ {[%emt 0:00:01]} Kxg6 {[%emt 0:00:27]} (33... Kh6 $1 $17 {...Qh5 would be deadly.} 34. h4 (34. Qg8 Bf6 $17) 34... gxh4) 34. Qe6+ {[%emt 0:00:01]} (34. Qe4+ {with more complications.} Kf7 35. Rf3+ Kg8 36. Qa8+) 34... Kh7 {[%emt 0:00:01]} 35. Qf5+ {[%emt 0:00:01]} Kh8 {[%emt 0:00:09]} (35... Kg8 $5 {[%cal Rd7f7]}) 36. Qxg5 {[%emt 0:00:03]} Qd5 {[%emt 0:00:04]} (36... Qxa4 $2 37. Qh5+ Kg8 38. Qe8+ Kh7 39. Qxd7 $18) 37. Rf3 {[%emt 0:00:22]} e4 {[%emt 0:00:17][%csl LRf3,LRg5]} 38. Rf5 {[%emt 0:00:01]} Qd6+ {[%emt 0:00:03]} 39. g3 {[%emt 0:00:04]} Qe6 {[%emt 0:00:05]} (39... Bxc3 $2 40. Qh5+ Kg7 41. Qg4+ Qg6 42. Rg5 $18 (42. Qxe4 Bf6 $11)) 40. Kg2 {[%emt 0:00:06]} e3 {[%emt 0:00:02]} (40... Bxc3 $2 41. Rf8+ Kh7 42. Qh5+ Kg7 43. Qh8+ Kg6 44. Qxc3 $18) 41. Qh5+ {[%emt 0:00:37]} (41. Qg4 $11 {keeps the balance.} Re7 42. fxe3) 41... Kg8 {( -> ...e2). Black is much more active.} 42. Qg4 {[%cal Of5f8] And now Rf8+! would win.} e2 {[%emt 0:00:15]} 43. Rf8+ $1 {[%emt 0:00:02][%mdl 64] Discovered Attack} Kxf8 {[%emt 0:00:00]} 44. Qxe6 $11 {[%emt 0:00:01][%mdl 4096] Endgame KQ-KRB} Re7 {[%emt 0:00:01] The board is on fire.} 45. Qc8+ {[%emt 0:00:10][%mdl 8192]} (45. Qf5+ $11 {and White stays safe.} Kg8 46. Qd5+ Kf8 47. Qf5+ Kg8 48. Qd5+ Kf8 49. Qf5+) 45... Kf7 $1 $19 {[%emt 0:00:01]} 46. Qf5+ {[%emt 0:00:22] [#]} Bf6 $1 {[%emt 0:00:00]} 47. Qh7+ {[%emt 0:00:07]} Kf8 {[%emt 0:00:01]} 48. Qh6+ {[%emt 0:00:01]} (48. Qf5 e1=Q 49. Qxf6+ Rf7 50. Qh6+ Ke8 51. Qh8+ Ke7 52. Qh4+ Rf6 53. Qh7+ Ke6 54. Qg8+ Kd7 55. Qg7+ Qe7 56. Qg4+ Qe6 57. Qd1+ Ke7 58. Qc2) 48... Bg7 {[%emt 0:00:02] Black is clearly winning.} 49. Qf4+ {[%emt 0:00:01]} Ke8 {[%emt 0:00:04]} 50. Qb8+ {[%emt 0:00:02]} Kf7 {[%emt 0:00:00]} 51. Qf4+ {[%emt 0:00:00] [#]} Bf6 $1 {[%emt 0:00:01]} 52. Qc4+ {[%emt 0:00:01]} Re6 {[%emt 0:00:03]} 53. Qc7+ {[%emt 0:00:10]} Kg6 {[%emt 0:00:02]} 54. h4 {[%emt 0:00:09] Weighted Error Value: White=0.59/Black=0.05 (flawless)} 0-1

[Event "Superbet Blitz Poland 2023"]
[Site "Warsaw"]
[Date "2023.05.25"]
[Round "11"]
[White "Rapport, Richard"]
[Black "Vachier-Lagrave, Maxime"]
[Result "0-1"]
[ECO "D00"]
[WhiteElo "2745"]
[BlackElo "2742"]
[Annotator "TA"]
[PlyCount "77"]
[EventDate "2023.05.24"]
[EventType "tourn"]
[EventCountry "POL"]
[SourceTitle "playchess.com"]
[Source "ChessBase"]
[SourceQuality "1"]
[TimeControl "300+2"]

{[%evp 9,77,-12,6,0,0,5,0,0,-20,-18,-8,-159,-154,-169,-168,-312,-95,-93,-58,-67,-77,-59,-59,-142,-133,-131,-67,-135,-129,-135,-96,-90,-93,-91,-91,-99,-79,-70,-78,-87,-77,-85,-89,-78,-86,-157,-166,-140,-156,-154,-147,-141,-130,-125,-125,-193,-107,-287,-277,-374,-364,-360,-351,-397,-213,-194,-190,-176,-181,-368]} 1. d4 {[%emt 0:00:02]} Nf6 {[%emt 0:00:01]} 2. Bg5 {[%emt 0:00:03]} d5 {[%emt 0:00:02]} 3. e3 {[%emt 0:00:05]} c5 {[%emt 0:00:02]} 4. Bxf6 {[%emt 0:00:03]} gxf6 {[%emt 0:00:02]} 5. Bb5+ {[%emt 0:00:06]} Nc6 {[%emt 0:00:17]} 6. Ne2 {[%emt 0:00:02] [#] D00: 1 d4 d5: Unusual lines.} e6 $146 {[%emt 0:00:11]} ({Predecessor:} 6... e5 7. Nbc3 Be6 8. O-O a6 9. Bxc6+ bxc6 10. f4 Bd6 11. dxe5 fxe5 12. f5 Bd7 {0-1 Moradiabadi,E (2586)-Bacrot,E (2720) Wch Blitz 8th 2014 (1)}) 7. O-O {[%emt 0:00:07]} Bd7 {[%emt 0:00:02]} 8. c4 {[%emt 0:00:02] The position is equal.} a6 {[%emt 0:00:09]} 9. Bxc6 {[%emt 0:00:30]} Bxc6 {[%emt 0:00:02]} 10. cxd5 {[%emt 0:00:08]} (10. b3 $11) 10... Qxd5 $17 {[%emt 0:00:02][%csl Gc6][%cal Rd5g2]} 11. Nf4 {[%emt 0:00:04]} Qf5 {[%emt 0:00:11]} 12. dxc5 {[%emt 0:00:22]} (12. d5 $142 exd5 13. Qh5 Qxh5 14. Nxh5) 12... Rd8 $2 {[%emt 0:00:03]} ({Stronger than} 12... Qxc5 13. Nc3 $15) (12... Bxc5 13. Qh5 $17) (12... Rg8 $1 $19 {is more deadly.} 13. g3 Qe4) 13. Qh5 {[%emt 0:00:05]} Qxc5 {[%emt 0:00:43]} ({Of course not} 13... Bxc5 14. Qxf5 exf5 15. Nc3 $14) (13... Qxh5 {simplifies} 14. Nxh5 Bxc5 15. Nc3 Ke7) 14. Nc3 {[%emt 0:00:27]} Qxh5 {[%emt 0:00:13]} 15. Nxh5 {[%emt 0:00:02]} Ke7 {[%emt 0:00:01]} 16. Ne2 {[%emt 0:00:19] [#]} (16. Rfd1 $15) 16... Rg8 $1 {[%emt 0:00:04]} 17. Nhg3 {[%emt 0:00:01] [#]} f5 {[%emt 0:00:22]} ({Black should play} 17... h5 $1 $17 {[%cal Rh5h4] ...h4 would be deadly.} 18. h4 f5) 18. Rac1 {[%emt 0:00:21]} ({Better is} 18. Rad1 $1 $15) 18... Bg7 {[%emt 0:00:02]} 19. Rc2 {[%emt 0:00:05] Inhibits Rd2.} Bf6 {[%emt 0:00:15][%cal Oh7h5]} 20. f3 {[%emt 0:00:19] Prevents h5.} Rd3 {[%emt 0:00:15]} 21. Kf2 {[%emt 0:00:21]} Rgd8 {[%emt 0:00:02]} 22. Rfc1 {[%emt 0:00:12]} R8d7 {[%emt 0:00:27]} 23. Nf1 {[%emt 0:00:24]} a5 {[%emt 0:00:05][%cal Ba6a5,Ba5a4][%mdl 32]} 24. Nc3 {[%emt 0:00:17]} a4 {[%emt 0:00:15]} 25. a3 {[%emt 0:00:01]} Rd8 {[%emt 0:00:03]} 26. Ke2 {[%emt 0:00:05]} Be5 {[%emt 0:00:07][%cal Bf6e5,Be5h2,Bh2d6,Bd6b4][%mdl 32] Black is much more active. The white rooks are badly placed.} 27. Rd2 {[%emt 0:00:12]} (27. g3 $142) 27... Rxd2+ {[%emt 0:00:24]} 28. Nxd2 {[%emt 0:00:01]} Bxh2 {[%emt 0:00:03]} 29. Rh1 {[%emt 0:00:01]} Bd6 {[%emt 0:00:21]} 30. Rxh7 {[%emt 0:00:02]} Rg8 {[%emt 0:00:02]} 31. Kf2 {[%emt 0:00:14]} b5 {[%emt 0:00:01]} 32. Ne2 {[%emt 0:00:09]} (32. Rh1 $17) 32... Bd5 {[%emt 0:00:29]} (32... Be5 $19 33. Nd4 Bd7) 33. Nd4 $2 {[%emt 0:00:10] Now White is beyond hope.} (33. Rh5 $17 {was called for.}) 33... b4 $19 {[%emt 0:00:02]} 34. axb4 {[%emt 0:00:01]} Bxb4 {[%emt 0:00:01]} 35. Nb1 {[%emt 0:00:15] [#]} f4 $1 {[%emt 0:00:02][%mdl 512]} 36. Rh4 {[%emt 0:00:26]} (36. Rh5 fxe3+) 36... fxe3+ {[%emt 0:00:05]} (36... Rb8 $142 37. Ne2 Bc5 {[%mdl 64] Discovered Attack} 38. Rxf4 Rxb2) 37. Kxe3 {[%emt 0:00:01][%cal Od4f5] Black is clearly better.} Bc5 {[%emt 0:00:11][%cal Oe6e5] A strong pair of Bishops.} ({Not} 37... Rxg2 38. Nf5+ Kf6 39. Rxb4 $11) 38. Nc3 {[%emt 0:00:01]} Bb3 {[%emt 0:00:07] Threatens to win with ...e5.} 39. Kd3 $2 {[%emt 0:00:14] Weighted Error Value: White=0.31/Black=0.22 (precise)} (39. Ke2 {was necessary.}) 0-1

[Event "Superbet Blitz Poland 2023"]
[Site "Warsaw"]
[Date "2023.05.25"]
[Round "11"]
[White "Wojtaszek, Radoslaw"]
[Black "Deac, Bogdan-Daniel"]
[Result "1/2-1/2"]
[ECO "A29"]
[WhiteElo "2670"]
[BlackElo "2700"]
[Annotator "TA"]
[PlyCount "96"]
[EventDate "2023.05.24"]
[EventType "tourn"]
[EventCountry "POL"]
[SourceTitle "playchess.com"]
[Source "ChessBase"]
[SourceQuality "1"]
[TimeControl "300+2"]

{[%evp 10,96,0,0,22,10,15,0,8,3,6,5,22,15,19,29,12,0,14,34,18,-75,4,-18,-13,-10,-8,-19,-37,-57,-51,-47,0,0,0,0,0,-9,0,0,0,0,0,0,0,0,19,14,29,33,16,0,53,53,73,0,8,0,0,0,55,63,107,98,101,92,70,79,77,77,70,0,46,46,46,35,35,35,35,35,35,26,46,0,46,0,46,0,54]} 1. c4 {[%emt 0:00:01]} Nf6 {[%emt 0:00:03]} 2. Nc3 {[%emt 0:00:04]} e5 {[%emt 0:00:01]} 3. Nf3 {[%emt 0:00:02]} Nc6 {[%emt 0:00:01]} 4. g3 {[%emt 0:00:01]} d5 {[%emt 0:00:44]} 5. cxd5 {[%emt 0:00:01]} Nxd5 {[%emt 0:00:01]} 6. Bg2 {[%emt 0:00:02][%cal Of3e5]} Bc5 {[%emt 0:00:12] A29: English Opening: Four Knights Variation with 4 g3.} 7. O-O {[%emt 0:00:03][%cal Of3e5]} O-O {[%emt 0:00:02]} 8. Qc2 {[%emt 0:00:03] And now Nxd5 would win.} Nf6 {[%emt 0:00:32]} 9. a3 {[%emt 0:00:02]} a5 {[%emt 0:00:12]} 10. e3 {[%emt 0:00:02][%cal Of3e5] [#]} Bd6 $146 {[%emt 0:00:13]} ({Predecessor:} 10... Qe7 11. b3 Rd8 12. Bb2 h6 13. Ne4 Nxe4 14. Qxe4 Bd6 15. Qc2 Be6 16. d3 Rd7 {1-0 Sarana,A (2668)-Svane,R (2619) Speed Chess Q1 blitz 2022 (8)}) 11. b3 {[%emt 0:00:07]} Re8 {[%emt 0:00:13]} 12. Bb2 {[%emt 0:00:07]} h6 {[%emt 0:00:05]} 13. Nh4 {[%emt 0:01:09]} Bf8 {[%emt 0:00:46]} 14. Rac1 {[%emt 0:00:17]} Be6 {[%emt 0:00:13][%cal Oa5a4]} 15. h3 {[%emt 0:00:54]} (15. Nb5 $11 {keeps the balance.}) 15... Nd7 {[%emt 0:00:28]} (15... Qd7 $17) 16. Na4 {[%emt 0:00:56]} Nb6 {[%emt 0:00:02]} 17. Nf3 {[%emt 0:00:12] [#]} e4 $1 {[%emt 0:00:58] Strongly threatening ...Nxa4.} 18. Nd4 {[%emt 0:00:11]} (18. Qxe4 $2 {is the wrong capture.} Bxb3 19. Qb1 Bxa4 $19) (18. Nh4 Nxa4) 18... Nxd4 {[%emt 0:00:04]} 19. Bxd4 {[%emt 0:00:02]} Nxa4 {[%emt 0:00:02]} 20. bxa4 {[%emt 0:00:02]} Bd5 {[%emt 0:00:07]} (20... Bxa3 $15 21. Ra1 Bb4) 21. Qxc7 $11 {[%emt 0:00:29]} Bxa3 {[%emt 0:00:14]} 22. Qxd8 {[%emt 0:00:12]} Rexd8 {[%emt 0:00:02]} 23. Rc2 {[%emt 0:00:05]} Rac8 {[%emt 0:00:18]} 24. Rxc8 {[%emt 0:00:10]} Rxc8 {[%emt 0:00:01]} 25. d3 {[%emt 0:00:00]} f5 {[%emt 0:00:01]} 26. g4 {[%emt 0:00:06]} g6 {[%emt 0:00:06]} 27. dxe4 {[%emt 0:00:16]} Bxe4 {[%emt 0:00:05]} 28. gxf5 {[%emt 0:00:01]} gxf5 {[%emt 0:00:02]} 29. Bxe4 {[%emt 0:00:02]} fxe4 {[%emt 0:00:01][%mdl 4096] Endgame KRB-KRB} 30. Bb6 {[%emt 0:00:01]} Rc6 {[%emt 0:00:08]} (30... Rc4 $11) 31. Bxa5 $14 {[%emt 0:00:02]} Ra6 {[%emt 0:00:01]} 32. Bc3 {[%emt 0:00:05]} ({Better is} 32. Bd2 $16) 32... Rxa4 $11 {[%emt 0:00:02]} 33. Rb1 {[%emt 0:00:00]} Rc4 {[%emt 0:00:02]} 34. Rb3 {[%emt 0:00:13]} Bc5 {[%emt 0:00:02]} (34... Bf8 $11) 35. Ba5 $1 $14 {[%emt 0:00:01]} Ra4 {[%emt 0:00:03] [#] Threatens to win with ...Ra1+.} 36. Rb5 $1 {[%emt 0:00:01]} Bd6 {[%emt 0:00:02]} 37. Bc3 {[%emt 0:00:02]} Rc4 {[%emt 0:00:02]} 38. Bd4 {[%emt 0:00:03]} Rc7 {[%emt 0:00:01]} 39. Rb6 {[%emt 0:00:04]} Rd7 {[%emt 0:00:02]} 40. Rb5 {[%emt 0:00:04]} (40. Kg2 $14) 40... Kf7 {[%emt 0:00:01]} (40... Rc7 $1 $11 {feels stronger.}) 41. Kg2 {[%emt 0:00:00]} Ke6 {[%emt 0:00:02]} 42. Rh5 {[%emt 0:00:01]} Rh7 {[%emt 0:00:03]} 43. Kf1 {[%emt 0:00:02]} Bc7 {[%emt 0:00:03]} 44. Ke2 {[%emt 0:00:01]} Bd6 {[%emt 0:00:01]} 45. Rb5 {[%emt 0:00:01]} Rc7 {[%emt 0:00:03]} 46. Rh5 {[%emt 0:00:01]} Rh7 {[%emt 0:00:01]} ({Don't take} 46... Rc2+ 47. Kf1 $14) 47. Rb5 {[%emt 0:00:06]} Rc7 {[%emt 0:00:01]} 48. Rh5 {[%emt 0:00:02]} Rh7 {[%emt 0:00:02] Weighted Error Value: White=0.14 (very precise) /Black=0.13 (very precise)} ({Resist} 48... Rc2+ 49. Kf1 $16) 1/2-1/2